bitfinex/quotes_BTCUSD_20241119
["timestamp","ask_amount","ask_price","bid_price","bid_amount"]
[1732057593128,0.0008534,91707.0,91697.0,0.26846426]
[1732057593356,0.0008534,91707.0,91697.0,0.42428355]
[1732057594322,0.0008534,91707.0,91706.0,0.063617]
[1732057594531,0.0008534,91707.0,91706.0,0.44189204]
[1732057594757,0.0008534,91707.0,91706.0,0.29567955]
[1732057596841,0.0008534,91707.0,91706.0,0.44172901]
[1732057597071,0.0008534,91707.0,91706.0,0.53909532]
[1732057597283,0.0008534,91707.0,91706.0,0.31064545]
[1732057597513,0.0008534,91707.0,91706.0,0.39124545]
[1732057597731,0.0008527,91733.0,91706.0,0.39124545]
[1732057597732,0.0008527,91733.0,91732.0,0.043605]
[1732057600490,0.0008527,91733.0,91732.0,0.043605]
[1732057600713,0.0008527,91733.0,91729.0,0.043606]
[1732057601358,0.0008527,91733.0,91732.0,0.043605]
[1732057601595,0.0008527,91733.0,91717.0,0.1]
[1732057601596,0.002,91730.0,91726.0,0.043607]
[1732057601849,0.002,91730.0,91715.0,0.043612]
[1732057601850,0.109026,91721.0,91715.0,0.043612]
[1732057602057,0.218037,91728.0,91716.0,0.043612]
[1732057602058,0.11124508,91720.0,91716.0,0.043612]
[1732057602268,0.11496508,91720.0,91717.0,0.05853396]
[1732057602503,0.11496508,91720.0,91717.0,0.01492196]
[1732057602504,0.109029,91718.0,91717.0,0.01492196]
[1732057602733,0.11696508,91720.0,91718.0,0.01492032]
[1732057602734,0.0471,91719.0,91718.0,0.01492032]
[1732057602945,0.0471,91719.0,91716.0,0.043612]
[1732057602946,0.00371919,91719.0,91716.0,0.043612]
[1732057603192,0.01,91709.0,91685.0,0.01395847]
[1732057603412,0.01,91709.0,91708.0,0.043616]
[1732057603654,0.01,91709.0,91708.0,0.05853901]
[1732057604098,0.2188777,91733.0,91725.0,0.043608]
[1732057604099,0.01,91726.0,91725.0,0.043608]
[1732057604323,0.0008527,91733.0,91725.0,0.043608]
[1732057604553,0.01,91730.0,91729.0,0.043606]
[1732057604763,0.01,91730.0,91708.0,0.1]
[1732057604764,0.002,91719.0,91718.0,0.043611]
[1732057604985,0.12124508,91730.0,91708.0,0.1]
[1732057604986,0.00218253,91730.0,91708.0,0.1]
[1732057605215,0.0008527,91733.0,91732.0,0.043605]
[1732057607279,0.0008527,91733.0,91718.0,0.043611]
[1732057607280,0.01,91724.0,91718.0,0.043611]
[1732057607518,0.01,91724.0,91709.0,0.023]
[1732057607740,0.119025,91722.0,91716.0,0.043612]
[1732057607964,0.119025,91722.0,91709.0,0.023]
[1732057607965,0.01,91721.0,91709.0,0.023]
[1732057608202,0.01,91721.0,91720.0,0.04361]
[1732057609089,0.119027,91720.0,91712.0,0.043614]
[1732057609319,0.01,91720.0,91715.0,0.043613]
[1732057610023,0.01,91720.0,91717.0,0.043612]
[1732057611143,0.01,91720.0,91703.0,0.1]
[1732057611144,0.01,91704.0,91677.0,0.0482]
[1732057611383,0.01,91704.0,91675.0,0.0475]
[1732057611384,0.002,91701.0,91675.0,0.0475]
[1732057611604,0.002,91701.0,91669.0,0.0017062]
[1732057611605,0.01,91697.0,91688.0,0.043625]
[1732057611820,0.01,91697.0,91669.0,0.0017062]
[1732057611821,0.01,91695.0,91669.0,0.0017062]
[1732057612035,0.01,91695.0,91692.0,0.043624]
[1732057612248,0.01,91695.0,91693.0,0.01493622]
[1732057612471,0.01,91695.0,91692.0,0.043624]
[1732057612472,0.00218253,91699.0,91698.0,0.043621]
[1732057612712,0.01,91702.0,91694.0,0.01494477]
[1732057612921,0.01,91702.0,91669.0,0.0453402]
[1732057612922,0.01,91698.0,91695.0,0.01494414]
[1732057613155,0.01,91698.0,91669.0,0.0017062]
[1732057613156,0.02,91702.0,91673.0,0.066633]
[1732057613429,0.02,91702.0,91697.0,0.043621]
[1732057613647,0.01,91698.0,91689.0,0.023]
[1732057613888,0.109055,91697.0,91690.0,0.01495035]
[1732057614098,0.109055,91697.0,91694.0,0.043623]
[1732057614099,0.0040947,91697.0,91694.0,0.043623]
[1732057614318,0.01,91695.0,91692.0,0.043624]
[1732057614558,0.01,91695.0,91693.0,0.01495685]
[1732057614767,0.01,91695.0,91694.0,0.01495685]
[1732057615453,0.01407875,91695.0,91694.0,0.05857985]
[1732057615648,0.01407875,91695.0,91694.0,0.05858567]
[1732057615925,0.01407875,91695.0,91694.0,0.043623]
[1732057616159,0.01407875,91695.0,91694.0,0.05858567]
[1732057616854,0.01407875,91695.0,91694.0,0.01496267]
[1732057617051,0.19173575,91695.0,91694.0,0.01496267]
[1732057617482,0.21591828,91695.0,91694.0,0.01496267]
[1732057617701,0.10267875,91695.0,91694.0,0.01496267]
[1732057617914,0.10467875,91695.0,91694.0,0.01496267]
[1732057618783,0.3227983,91695.0,91694.0,0.01496267]
[1732057619312,0.3227983,91695.0,91675.0,0.087264]
[1732057619313,0.109061,91692.0,91675.0,0.087264]
[1732057619519,0.109061,91692.0,91686.0,0.043627]
[1732057619733,0.00407261,91691.0,91687.0,0.05860271]
[1732057619963,0.00407261,91691.0,91688.0,0.01497671]
[1732057620179,0.00407172,91690.0,91689.0,0.01497671]
[1732057620415,0.12124253,91693.0,91689.0,0.01497671]
[1732057620630,0.12124253,91693.0,91690.0,0.01497671]
[1732057620850,0.12124253,91693.0,91682.0,0.043628]
[1732057620851,0.01,91691.0,91682.0,0.043628]
[1732057621306,0.109065,91688.0,91683.0,0.05860806]
[1732057621309,0.109065,91688.0,91683.0,0.01498006]
[1732057621541,0.109063,91690.0,91684.0,0.043627]
[1732057621764,0.119067,91686.0,91685.0,0.01498006]
[1732057621982,0.24031208,91686.0,91685.0,0.01498006]
[1732057622211,0.23812955,91686.0,91685.0,0.01498006]
[1732057622448,0.02,91686.0,91685.0,0.01498006]
[1732057623128,0.131067,91686.0,91685.0,0.01498006]
[1732057623364,0.10907,91684.0,91683.0,0.0017064]
[1732057623601,0.11107,91684.0,91683.0,0.0017064]
[1732057624041,0.01,91689.0,91688.0,0.043626]
[1732057624247,0.02,91691.0,91690.0,0.043625]
[1732057624456,0.02,91691.0,91683.0,0.0017064]
[1732057624457,0.02,91691.0,91685.0,0.043627]
[1732057624675,0.01,91684.0,91683.0,0.0453344]
[1732057625349,0.01,91687.0,91686.0,0.043627]
[1732057626065,0.01,91690.0,91686.0,0.043627]
[1732057626282,0.01,91691.0,91690.0,0.043625]
[1732057626496,0.02,91691.0,91690.0,0.05858742]
[1732057627162,0.01,91691.0,91690.0,0.05858742]
[1732057628477,0.01,91691.0,91690.0,0.01496242]
[1732057628691,0.01,91691.0,91690.0,0.05858742]
[1732057630084,0.012,91691.0,91690.0,0.01496242]
[1732057630291,0.01,91691.0,91690.0,0.01496242]
[1732057630509,0.01404367,91691.0,91690.0,0.05858742]
[1732057631245,0.01404367,91691.0,91690.0,0.043625]
[1732057631458,0.01404367,91691.0,91690.0,0.05861093]
[1732057632805,0.00404367,91691.0,91690.0,0.05861093]
[1732057632978,0.012,91705.0,91690.0,0.05861093]
[1732057632979,0.01,91703.0,91690.0,0.01498593]
[1732057633231,0.01,91703.0,91702.0,0.043619]
[1732057633435,0.01406814,91703.0,91702.0,0.05860493]
[1732057633641,0.01406814,91703.0,91702.0,0.01498593]
[1732057633872,0.01406814,91703.0,91702.0,0.05860493]
[1732057634075,0.24217769,91703.0,91702.0,0.01498593]
[1732057634248,0.24417769,91703.0,91702.0,0.01498593]
[1732057634449,0.24417769,91703.0,91702.0,0.01498967]
[1732057636041,0.24417769,91703.0,91676.0,0.043631]
[1732057636042,0.12107,91684.0,91678.0,0.04363]
[1732057636239,0.12107,91684.0,91683.0,0.0453344]
[1732057636240,0.01,91684.0,91683.0,0.0453344]
[1732057636559,0.012,91691.0,91683.0,0.0453344]
[1732057636560,0.01,91691.0,91690.0,0.043625]
[1732057636877,0.012,91688.0,91687.0,0.043626]
[1732057637075,0.12106255,91688.0,91687.0,0.043626]
[1732057637280,0.1231164,91688.0,91687.0,0.05863085]
[1732057637492,0.1231164,91688.0,91687.0,0.043626]
[1732057637947,0.1231164,91688.0,91684.0,0.043628]
[1732057637948,0.12529893,91688.0,91685.0,0.043627]
[1732057638172,0.11106255,91687.0,91685.0,0.043627]
[1732057638385,0.01405184,91686.0,91685.0,0.043627]
[1732057638597,0.12311439,91686.0,91685.0,0.043627]
[1732057639685,0.00405184,91686.0,91685.0,0.043627]
[1732057640090,0.02,91691.0,91690.0,0.043625]
[1732057640540,0.01,91691.0,91690.0,0.043625]
[1732057641914,0.02,91691.0,91690.0,0.043625]
[1732057642774,0.022,91691.0,91690.0,0.043625]
[1732057643381,0.012,91691.0,91690.0,0.043625]
[1732057644225,0.022,91691.0,91690.0,0.043625]
[1732057644431,0.012,91691.0,91690.0,0.043625]
[1732057644684,0.022,91691.0,91690.0,0.043625]
[1732057645128,0.02,91691.0,91687.0,0.043626]
[1732057645351,0.02,91691.0,91688.0,0.043626]
[1732057645580,0.002,91689.0,91688.0,0.043626]
[1732057646246,0.00574403,91689.0,91688.0,0.043626]
[1732057646633,0.01,91687.0,91685.0,0.0017064]
[1732057646790,0.23031208,91686.0,91685.0,0.0017064]
[1732057646996,0.13280355,91686.0,91685.0,0.0017064]
[1732057647414,0.13698608,91686.0,91685.0,0.0017064]
[1732057648261,0.24605308,91686.0,91685.0,0.0017064]
[1732057648477,0.24387055,91686.0,91685.0,0.0017064]
[1732057649978,0.26387055,91686.0,91685.0,0.0017064]
[1732057652229,0.25387055,91686.0,91685.0,0.0017064]
[1732057652679,0.26387055,91686.0,91685.0,0.0017064]
[1732057652900,0.24387055,91686.0,91685.0,0.0017064]
[1732057654931,0.22387055,91686.0,91685.0,0.0017064]
[1732057657614,0.22472375,91686.0,91685.0,0.0017064]
[1732057659574,0.22272375,91686.0,91685.0,0.0017064]
[1732057659793,0.22472375,91686.0,91685.0,0.0017064]
[1732057660006,0.22272375,91686.0,91685.0,0.0017064]
[1732057660437,0.22472375,91686.0,91685.0,0.0017064]
[1732057663539,0.11565675,91686.0,91685.0,0.0017064]
[1732057664646,0.22472375,91686.0,91685.0,0.0017064]
[1732057666410,0.35042375,91686.0,91685.0,0.0017064]
[1732057666633,0.02,91684.0,91683.0,0.0017064]
[1732057666854,0.02,91684.0,91663.0,0.0453438]
[1732057666855,0.131086,91670.0,91663.0,0.0453438]
[1732057667067,0.36803108,91670.0,91663.0,0.0017068]
[1732057667336,0.37003309,91670.0,91663.0,0.0017068]
[1732057670718,0.41497438,91670.0,91663.0,0.0017068]
[1732057671330,0.30588838,91670.0,91663.0,0.0017068]
[1732057671495,0.41497438,91670.0,91663.0,0.0017068]
[1732057673293,0.42497438,91670.0,91663.0,0.0017068]
[1732057673927,0.30588838,91670.0,91663.0,0.0017068]
[1732057674151,0.24728838,91670.0,91667.0,0.043635]
[1732057674367,0.24728838,91670.0,91663.0,0.0017068]
[1732057674595,0.24728838,91670.0,91665.0,0.043637]
[1732057675034,0.24728838,91670.0,91665.0,0.043636]
[1732057675247,0.24728838,91670.0,91663.0,0.0017068]
[1732057675462,0.35637438,91670.0,91664.0,0.043637]
[1732057675686,0.24728838,91670.0,91664.0,0.043637]
[1732057675902,0.24728838,91670.0,91666.0,0.043636]
[1732057676403,0.24728838,91670.0,91667.0,0.043635]
[1732057676601,0.24728838,91670.0,91669.0,0.0453412]
[1732057676771,0.24728838,91670.0,91669.0,0.0017062]
[1732057681569,0.24728838,91670.0,91669.0,0.0453412]
[1732057682007,0.24728838,91670.0,91669.0,0.0017062]
[1732057682228,0.24728838,91670.0,91669.0,0.0453412]
[1732057687628,0.24728838,91670.0,91669.0,0.0017062]
[1732057687942,0.35637438,91670.0,91669.0,0.0017062]
[1732057688959,0.45954486,91670.0,91669.0,0.0017062]
[1732057689191,0.42377438,91670.0,91669.0,0.0017062]
[1732057690470,0.42177438,91670.0,91669.0,0.0017062]
[1732057690705,0.42377438,91670.0,91669.0,0.0017062]
[1732057690920,0.53177438,91670.0,91669.0,0.0017062]
[1732057691369,0.53377438,91670.0,91669.0,0.0017062]
[1732057691619,0.60548824,91670.0,91669.0,0.0017062]
[1732057691861,0.53377438,91670.0,91669.0,0.0017062]
[1732057692721,0.52377438,91670.0,91669.0,0.0017062]
[1732057693005,0.41377438,91670.0,91669.0,0.0017062]
[1732057693232,0.36637438,91670.0,91669.0,0.0017062]
[1732057693925,0.25728838,91670.0,91669.0,0.0017062]
[1732057694405,0.21234709,91670.0,91669.0,0.0017062]
[1732057694608,0.21452962,91670.0,91669.0,0.0017062]
[1732057697207,0.32361562,91670.0,91669.0,0.0017062]
[1732057697442,0.32143309,91670.0,91669.0,0.0017062]
[1732057698568,0.21234709,91670.0,91669.0,0.0017062]
[1732057698794,0.21452962,91670.0,91669.0,0.0017062]
[1732057699280,0.00418454,91670.0,91669.0,0.0453412]
[1732057699954,0.01,91674.0,91673.0,0.043633]
[1732057700388,0.012,91674.0,91673.0,0.043633]
[1732057700610,0.01,91674.0,91673.0,0.043633]
[1732057701908,0.01336476,91674.0,91673.0,0.043633]
[1732057702327,0.01536476,91674.0,91673.0,0.043633]
[1732057702581,0.01336476,91674.0,91673.0,0.043633]
[1732057702826,0.01336476,91674.0,91670.0,0.054543]
[1732057702827,0.002,91671.0,91670.0,0.054543]
[1732057703717,0.00536174,91671.0,91670.0,0.054543]
[1732057703927,0.002,91671.0,91670.0,0.054543]
[1732057704367,0.01,91674.0,91673.0,0.043633]
[1732057704794,0.01336476,91674.0,91673.0,0.043633]
[1732057705211,0.01,91674.0,91673.0,0.043633]
[1732057705449,0.012,91674.0,91673.0,0.043633]
[1732057707596,0.01536476,91674.0,91673.0,0.043633]
[1732057709584,0.01536476,91674.0,91669.0,0.0017062]
[1732057709585,0.01,91670.0,91669.0,0.0017062]
[1732057709816,0.12106255,91670.0,91669.0,0.0017062]
[1732057710024,0.12663297,91670.0,91669.0,0.0017062]
[1732057710473,0.24571897,91670.0,91669.0,0.0017062]
[1732057710683,0.32223644,91670.0,91669.0,0.0017062]
[1732057714219,0.36733483,91670.0,91669.0,0.0017062]
[1732057715310,0.01,91653.0,91642.0,0.14668179]
[1732057715520,0.0787,91654.0,91649.0,0.043644]
[1732057715521,0.012,91650.0,91649.0,0.043644]
[1732057715740,0.11906255,91650.0,91649.0,0.043644]
[1732057715956,0.12243026,91650.0,91649.0,0.043644]
[1732057716193,0.12443026,91650.0,91649.0,0.043644]
[1732057716387,0.12443026,91650.0,91648.0,0.043645]
[1732057716617,0.10906255,91649.0,91647.0,0.043645]
[1732057716852,0.002,91648.0,91647.0,0.043645]
[1732057717088,0.002,91639.0,91638.0,0.0017052]
[1732057717318,0.109114,91647.0,91638.0,0.0017052]
[1732057717319,0.012,91640.0,91639.0,0.043649]
[1732057717547,0.19776255,91640.0,91639.0,0.043649]
[1732057718025,0.19776255,91640.0,91638.0,0.0017052]
[1732057718026,0.131123,91639.0,91638.0,0.0017052]
[1732057718241,0.24018555,91639.0,91638.0,0.0017052]
[1732057718693,0.2435157,91639.0,91638.0,0.0017052]
[1732057718902,0.1343927,91639.0,91638.0,0.0017052]
[1732057719555,0.13657523,91639.0,91638.0,0.0017052]
[1732057720431,0.12657523,91639.0,91638.0,0.0453552]
[1732057720654,0.1243927,91639.0,91638.0,0.0453552]
[1732057720870,0.1223927,91639.0,91638.0,0.0453552]
[1732057721093,0.01333015,91639.0,91638.0,0.0453552]
[1732057721957,0.01533015,91639.0,91638.0,0.0453552]
[1732057722171,0.00333015,91639.0,91638.0,0.0453552]
[1732057722596,0.01,91644.0,91643.0,0.043647]
[1732057723040,0.01,91645.0,91644.0,0.043647]
[1732057723246,0.11906255,91645.0,91644.0,0.043647]
[1732057723450,0.12237412,91645.0,91644.0,0.043647]
[1732057724147,0.11237412,91645.0,91644.0,0.043647]
[1732057724579,0.00331157,91645.0,91644.0,0.043647]
[1732057725018,0.01,91650.0,91649.0,0.043644]
[1732057728302,0.0795,91660.0,91649.0,0.043644]
[1732057728303,0.0795,91660.0,91659.0,0.04364]
[1732057728733,0.0795,91660.0,91638.0,0.0017068]
[1732057728734,0.01,91647.0,91638.0,0.0017068]
[1732057728966,0.0986,91639.0,91638.0,0.0017068]
[1732057729194,0.01,91643.0,91640.0,0.043649]
[1732057729601,0.01,91643.0,91642.0,0.043648]
[1732057730424,0.01,91643.0,91638.0,0.0017068]
[1732057730887,0.01,91643.0,91642.0,0.043648]
[1732057732156,0.012,91639.0,91638.0,0.0017068]
[1732057732369,0.23018555,91639.0,91638.0,0.0017068]
[1732057733229,0.35188555,91639.0,91638.0,0.0017068]
[1732057733440,0.24276255,91639.0,91638.0,0.0017068]
[1732057733857,0.1337,91639.0,91638.0,0.0017068]
[1732057734084,0.0866,91639.0,91638.0,0.0453568]
[1732057734290,0.0766,91639.0,91638.0,0.0344438]
[1732057734536,0.012,91644.0,91643.0,0.032735]
[1732057734755,0.13106255,91644.0,91640.0,0.032736]
[1732057734975,0.01,91642.0,91641.0,0.032736]
[1732057735195,0.01,91642.0,91640.0,0.032736]
[1732057735463,0.013775,91642.0,91640.0,0.032736]
[1732057735686,0.013775,91642.0,91641.0,0.032736]
[1732057735890,0.003775,91642.0,91641.0,0.032736]
[1732057736320,0.0775,91646.0,91641.0,0.032736]
[1732057736543,0.0775,91646.0,91645.0,0.032735]
[1732057738324,0.0875,91646.0,91645.0,0.032735]
[1732057738519,0.0775,91646.0,91645.0,0.032735]
[1732057739908,0.012,91639.0,91638.0,0.0017068]
[1732057740108,0.12106255,91639.0,91638.0,0.0017068]
[1732057740330,0.1237908,91639.0,91638.0,0.0017068]
[1732057741432,0.1237908,91639.0,91638.0,0.0344438]
[1732057741433,0.1117908,91639.0,91638.0,0.0344438]
[1732057741656,0.012,91649.0,91638.0,0.0017068]
[1732057741893,0.19656255,91652.0,91638.0,0.0017068]
[1732057742115,0.19929039,91652.0,91649.0,0.032733]
[1732057742336,0.19929039,91652.0,91651.0,0.032732]
[1732057742541,0.0775,91652.0,91651.0,0.032732]
[1732057742753,0.01,91658.0,91657.0,0.03273]
[1732057742754,0.0875,91658.0,91657.0,0.03273]
[1732057744095,0.0895,91658.0,91657.0,0.03273]
[1732057747143,0.0875,91658.0,91657.0,0.03273]
[1732057749196,0.002,91663.0,91661.0,0.032729]
[1732057749409,0.0792,91666.0,91662.0,0.032728]
[1732057749680,0.0792,91666.0,91665.0,0.032727]
[1732057750260,0.08301657,91666.0,91665.0,0.032727]
[1732057750706,0.00381657,91666.0,91665.0,0.032727]
[1732057750921,0.0792,91671.0,91665.0,0.032727]
[1732057751155,0.002,91677.0,91670.0,0.032726]
[1732057751380,0.0792,91678.0,91676.0,0.032723]
[1732057751603,0.0792,91678.0,91677.0,0.032723]
[1732057752108,0.0008532,91680.0,91679.0,0.032722]
[1732057754848,0.0008532,91680.0,91679.0,0.05790098]
[1732057755056,0.0008532,91686.0,91685.0,0.03272]
[1732057755269,0.0008532,91686.0,91685.0,0.16695972]
[1732057755493,0.0008532,91686.0,91685.0,0.26478255]
[1732057755984,2e-07,91686.0,91685.0,0.26478255]
[1732057756217,0.0812,91725.0,91724.0,0.032706]
[1732057756447,0.0792,91725.0,91724.0,0.032706]
[1732057756692,0.08291496,91725.0,91724.0,0.032706]
[1732057757132,0.09291496,91725.0,91724.0,0.032706]
[1732057758245,0.00371496,91725.0,91724.0,0.032706]
[1732057759588,0.0008536,91736.0,91732.0,0.032703]
[1732057760055,0.00440595,91733.0,91732.0,0.032703]
[1732057760276,0.0008527,91733.0,91732.0,0.032703]
[1732057760506,0.00440595,91733.0,91732.0,0.032703]
[1732057761858,0.00440595,91733.0,91732.0,0.0578782]
[1732057762066,0.0008527,91733.0,91732.0,0.26693934]
[1732057762292,0.0004,91739.0,91738.0,0.055701]
[1732057762511,0.0004,91739.0,91738.0,0.16476355]
[1732057762785,0.0004,91739.0,91738.0,0.26476355]
[1732057763010,0.0004,91739.0,91738.0,0.132701]
[1732057763243,0.0004,91739.0,91738.0,0.032701]
[1732057763891,0.00376356,91739.0,91738.0,0.032701]
[1732057764153,0.0004,91739.0,91738.0,0.032701]
[1732057764383,0.0004,91739.0,91734.0,0.065406]
[1732057764384,0.00510898,91739.0,91736.0,0.032702]
[1732057764624,0.00510898,91739.0,91734.0,0.032703]
[1732057764625,0.0004,91739.0,91738.0,0.032701]
[1732057764831,0.00474951,91738.0,91736.0,0.032702]
[1732057765149,0.0047479,91737.0,91736.0,0.032702]
[1732057765586,0.0004,91739.0,91736.0,0.032702]
[1732057765799,0.0047479,91737.0,91716.0,0.023]
[1732057766009,0.0004,91739.0,91716.0,0.023]
[1732057766233,0.0004,91739.0,91738.0,0.032701]
[1732057767143,0.0004,91739.0,91738.0,0.0348759]
[1732057767372,0.0004,91739.0,91738.0,0.032701]
[1732057768431,0.0004,91739.0,91738.0,0.03487571]
[1732057769978,0.0004,91739.0,91738.0,0.26693826]
[1732057770204,0.0004,91739.0,91738.0,0.26476355]
[1732057774946,0.0021056,91739.0,91738.0,0.26476355]
[1732057780167,0.0021056,91739.0,91738.0,0.16476355]
[1732057781387,0.0021056,91739.0,91738.0,0.26476355]
[1732057786144,0.0021056,91739.0,91738.0,0.24176355]
[1732057786362,0.0021056,91739.0,91738.0,0.26476355]
[1732057788368,0.0021056,91739.0,91738.0,0.032701]
[1732057791250,0.1283056,91739.0,91738.0,0.032701]
[1732057791687,0.132642,91739.0,91738.0,0.032701]
[1732057792778,0.01,91738.0,91737.0,0.0008528]
[1732057793002,0.01,91738.0,91705.0,0.032713]
[1732057793003,0.1262,91727.0,91705.0,0.032713]
[1732057793229,0.1262,91727.0,91725.0,0.032706]
[1732057793456,0.1262,91727.0,91726.0,0.032706]
[1732057795138,0.0809,91727.0,91726.0,0.032706]
[1732057795584,0.08517323,91727.0,91726.0,0.032706]
[1732057796254,0.08517323,91727.0,91726.0,0.26694417]
[1732057796255,0.00427323,91727.0,91726.0,0.26694417]
[1732057796482,0.00427323,91727.0,91726.0,0.26476855]
[1732057796922,0.1225,91747.0,91738.0,0.032701]
[1732057797150,0.1225,91747.0,91738.0,0.055701]
[1732057801178,0.1225,91747.0,91738.0,0.032701]
[1732057801395,0.1225,91747.0,91736.0,0.032702]
[1732057801601,0.0767,91738.0,91737.0,0.032701]
[1732057802038,0.08101247,91738.0,91737.0,0.032701]
[1732057802258,0.08101247,91738.0,91722.0,0.032707]
[1732057802259,0.0767,91737.0,91722.0,0.032707]
[1732057802501,0.0767,91737.0,91728.0,0.032705]
[1732057802502,0.0458,91732.0,91728.0,0.032705]
[1732057802726,0.0458,91732.0,91726.0,0.0335578]
[1732057802727,0.002,91728.0,91726.0,0.0335578]
[1732057802940,0.0767,91727.0,91726.0,0.0335578]
[1732057803157,0.08097728,91727.0,91726.0,0.0335578]
[1732057803382,0.08097728,91727.0,91726.0,0.0008528]
[1732057803383,0.13677728,91727.0,91726.0,0.0008528]
[1732057803823,0.13877728,91727.0,91726.0,0.0008528]
[1732057804043,0.411613,91727.0,91726.0,0.0008528]
[1732057806326,0.0767,91711.0,91694.0,0.032717]
[1732057806547,0.0458,91703.0,91697.0,0.032716]
[1732057806764,0.002,91700.0,91697.0,0.032716]
[1732057807213,0.002,91700.0,91679.0,0.01137265]
[1732057807214,0.01,91697.0,91689.0,0.032719]
[1732057807443,0.01,91697.0,91679.0,0.01137265]
[1732057807444,0.002,91693.0,91690.0,0.032718]
[1732057807693,0.002,91693.0,91689.0,0.032719]
[1732057807694,0.012,91693.0,91689.0,0.032719]
[1732057807910,0.012,91693.0,91685.0,0.0008533]
[1732057807911,0.00416862,91692.0,91688.0,0.032719]
[1732057808339,0.00416862,91692.0,91686.0,0.03272]
[1732057808340,0.002,91691.0,91686.0,0.03272]
[1732057808554,0.002,91691.0,91688.0,0.032719]
[1732057808785,0.00416539,91690.0,91688.0,0.032719]
[1732057808997,0.00416539,91690.0,91686.0,0.03272]
[1732057809214,0.00616539,91690.0,91688.0,0.032719]
[1732057810084,0.00616539,91690.0,91689.0,0.032719]
[1732057810273,0.00616539,91690.0,91660.0,0.032729]
[1732057810274,0.109086,91671.0,91660.0,0.032729]
[1732057810565,0.109086,91671.0,91645.0,0.0008528]
[1732057810566,0.01,91650.0,91645.0,0.0008528]
[1732057810797,0.02,91661.0,91645.0,0.00303311]
[1732057811041,0.02,91661.0,91656.0,0.03273]
[1732057811042,0.131,91660.0,91656.0,0.03273]
[1732057811282,0.012,91651.0,91645.0,0.0008528]
[1732057811511,0.002,91648.0,91645.0,0.0008528]
[1732057811735,0.01,91646.0,91645.0,0.0008528]
[1732057811956,0.131115,91646.0,91645.0,0.0008528]
[1732057812183,0.180815,91646.0,91645.0,0.0008528]
[1732057812396,0.262115,91646.0,91645.0,0.0008528]
[1732057812835,0.37117755,91646.0,91645.0,0.0008528]
[1732057814180,0.36917755,91646.0,91645.0,0.0008528]
[1732057815141,0.37117755,91646.0,91645.0,0.0008528]
[1732057818621,0.26006255,91646.0,91645.0,0.0008528]
[1732057818843,0.131,91646.0,91645.0,0.0335878]
[1732057819736,0.131,91646.0,91625.0,0.0138444]
[1732057819943,0.131,91646.0,91645.0,0.032735]
[1732057820156,0.131,91646.0,91643.0,0.032735]
[1732057820157,0.002,91644.0,91643.0,0.032735]
[1732057820415,0.002,91644.0,91638.0,0.032737]
[1732057820627,0.131,91646.0,91645.0,0.032735]
[1732057823279,0.01,91654.0,91637.0,0.032737]
[1732057823495,0.01,91654.0,91653.0,0.032732]
[1732057823496,0.02,91654.0,91653.0,0.032732]
[1732057823716,0.01,91654.0,91653.0,0.032732]
[1732057824601,0.02,91654.0,91653.0,0.032732]
[1732057824829,0.01,91654.0,91653.0,0.032732]
[1732057825470,0.01376932,91654.0,91653.0,0.032732]
[1732057826354,0.00376932,91654.0,91653.0,0.032732]
[1732057827924,0.00376932,91654.0,91651.0,0.032732]
[1732057827925,0.0497,91658.0,91657.0,0.03273]
[1732057831351,0.01,91661.0,91660.0,0.032729]
[1732057832032,0.0807,91664.0,91663.0,0.032728]
[1732057832247,0.01,91670.0,91669.0,0.032726]
[1732057832464,0.0776,91672.0,91664.0,0.065456]
[1732057832465,0.002,91679.0,91672.0,0.032725]
[1732057832674,0.002,91679.0,91678.0,0.032723]
[1732057832873,0.01,91681.0,91678.0,0.032723]
[1732057833065,0.01,91681.0,91680.0,0.032722]
[1732057834267,0.0453,91682.0,91681.0,0.032722]
[1732057834737,0.0017066,91685.0,91684.0,0.032721]
[1732057837869,0.0117066,91685.0,91684.0,0.032721]
[1732057839041,0.01,91684.0,91681.0,0.032722]
[1732057839253,0.01,91684.0,91677.0,0.032723]
[1732057839254,0.01,91681.0,91679.0,0.032722]
[1732057839472,0.01,91681.0,91634.0,0.032738]
[1732057839473,0.0961188,91683.0,91672.0,0.032725]
[1732057839474,0.01,91673.0,91672.0,0.032725]
[1732057839975,0.01410821,91673.0,91672.0,0.032725]
[1732057840194,0.01,91673.0,91672.0,0.032725]
[1732057840418,0.01410821,91673.0,91672.0,0.032725]
[1732057841974,0.01410821,91673.0,91670.0,0.032725]
[1732057841975,0.01,91672.0,91670.0,0.032725]
[1732057842186,0.05400821,91673.0,91646.0,0.032734]
[1732057842187,0.012,91658.0,91646.0,0.032734]
[1732057842413,0.012,91658.0,91654.0,0.032731]
[1732057842631,0.012,91658.0,91656.0,0.032731]
[1732057842632,0.0041051,91657.0,91656.0,0.032731]
[1732057844406,0.01,91653.0,91652.0,0.032732]
[1732057844639,0.0699,91653.0,91650.0,0.032732]
[1732057844877,0.07400115,91653.0,91652.0,0.032732]
[1732057845110,0.07400115,91653.0,91651.0,0.032732]
[1732057845341,0.07400115,91653.0,91652.0,0.032732]
[1732057845771,0.01,91651.0,91648.0,0.032733]
[1732057845988,0.01,91649.0,91647.0,0.032734]
[1732057846261,0.01,91649.0,91645.0,0.0008533]
[1732057846262,0.01,91651.0,91645.0,0.0008533]
[1732057846263,0.094,91646.0,91645.0,0.0008533]
[1732057846691,0.10879508,91646.0,91645.0,0.0008533]
[1732057846918,0.11079508,91646.0,91645.0,0.0008533]
[1732057847179,0.1080672,91646.0,91645.0,0.0008533]
[1732057847399,0.32624475,91646.0,91645.0,0.0008533]
[1732057847640,0.32424475,91646.0,91645.0,0.0008533]
[1732057847849,0.32624475,91646.0,91645.0,0.0008533]
[1732057849797,0.21512975,91646.0,91645.0,0.0008533]
[1732057850032,0.20785794,91646.0,91645.0,0.0335883]
[1732057850269,0.21785794,91646.0,91645.0,0.0008533]